bitfinex/quotes_ETHUSD_20250414
["timestamp","ask_amount","ask_price","bid_price","bid_amount"]
[1744602492709,0.783,1632.3,1632.0,4.90167]
[1744602493008,0.783,1632.3,1632.0,9.80363]
[1744602493154,0.783,1632.3,1632.0,4.90167]
[1744602493354,5.68409,1632.3,1632.0,4.90167]
[1744602494600,4.90146,1632.2,1631.8,12.115715]
[1744602494800,0.783,1632.1,1631.8,5.392715]
[1744602495001,5.68472,1632.1,1631.8,5.392715]
[1744602495189,5.68472,1632.1,1631.8,10.295085]
[1744602495190,0.783,1632.1,1631.8,10.295085]
[1744602495780,0.783,1632.1,1631.8,5.392605]
[1744602496107,0.783,1632.1,1631.8,4.90237]
[1744602496973,5.68471,1632.1,1631.7,4.90283]
[1744602497193,0.06117192,1632.0,1631.7,4.90283]
[1744602498614,0.06117192,1632.0,1631.6,11.50034488]
[1744602498615,5.68539,1631.9,1631.6,0.46714502]
[1744602498761,0.783,1631.9,1631.6,5.37028502]
[1744602499109,0.783,1631.9,1631.6,6.6028075]
[1744602500118,0.783,1631.9,1631.7,4.90273]
[1744602500406,0.783,1631.9,1631.6,6.6026475]
[1744602500605,4.96390192,1631.8,1631.4,4.90365]
[1744602500771,0.788,1631.7,1631.4,4.90365]
[1744602501306,5.53859211,1631.8,1631.1,4.90465]
[1744602501307,4.90363,1631.5,1631.1,4.90465]
[1744602501508,0.84917192,1631.4,1631.3,4.90406]
[1744602501715,0.84917192,1631.6,1631.3,9.80812]
[1744602501862,0.788,1631.6,1631.4,4.90372]
[1744602502818,0.84917192,1631.8,1631.5,4.9034]
[1744602504405,0.84917192,1631.8,1631.4,3.13004986]
[1744602504574,0.788,1631.8,1631.6,4.90294]
[1744602504916,4.90297,1631.7,1631.3,6.34300914]
[1744602505215,4.90358,1631.5,1631.1,7.90451]
[1744602505373,0.84917192,1631.6,1631.1,3.0]
[1744602505569,0.788,1631.6,1631.4,4.90373]
[1744602505915,0.788,1631.6,1631.3,9.80774]
[1744602506072,0.788,1631.6,1631.4,4.90375]
[1744602506671,0.83607192,1631.8,1631.5,4.9033]
[1744602507129,0.83607192,1631.8,1631.3,1.82575668]
[1744602507269,0.7749,1632.0,1631.8,4.90249]
[1744602507470,0.7749,1632.0,1631.9,0.490249]
[1744602507722,0.7749,1632.0,1631.8,4.90249]
[1744602507917,0.7749,1632.0,1631.8,4.90238]
[1744602508119,0.7749,1632.2,1632.0,4.90185]
[1744602508318,6.78617192,1632.3,1632.0,9.80364]
[1744602508609,5.75702192,1632.4,1632.0,10.783964]
[1744602508792,5.75702192,1632.4,1632.0,5.882154]
[1744602508994,9.80251,1632.3,1631.9,4.9022]
[1744602509203,0.7749,1632.1,1631.8,5.37196768]
[1744602509919,0.7749,1632.1,1631.9,4.90225]
[1744602510302,0.7749,1632.1,1631.8,5.37196768]
[1744602510303,0.7749,1632.1,1631.8,4.90253]
[1744602510479,5.67657,1632.1,1631.9,0.490253]
[1744602510679,0.7749,1632.1,1631.7,4.90281]
[1744602510923,0.7749,1632.1,1631.8,4.90231]
[1744602511132,0.06117192,1632.2,1631.9,4.90223]
[1744602511914,0.06117192,1632.2,1632.0,4.90195]
[1744602512114,5.73716192,1632.3,1632.0,4.90195]
[1744602512289,10.63850192,1632.3,1631.9,4.90223]
[1744602512489,10.63850192,1632.3,1631.9,5.392453]
[1744602513037,0.83607192,1632.3,1632.0,4.90177]
[1744602513241,0.7749,1632.3,1632.1,4.90164]
[1744602513546,0.7949,1632.4,1632.1,4.90164]
[1744602514818,0.7949,1632.4,1632.2,4.90125]
[1744602515019,0.7949,1632.4,1632.2,5.881529]
[1744602515245,5.69577,1632.4,1632.0,4.90181]
[1744602515454,0.754,1632.1,1631.8,5.36307775]
[1744602515649,0.754,1632.1,1631.8,10.26559775]
[1744602515950,0.754,1632.1,1631.9,4.90225]
[1744602516251,0.06117192,1632.3,1632.0,4.90196]
[1744602516472,0.83517192,1632.4,1632.1,5.391636]
[1744602516660,5.73609192,1632.4,1632.0,4.90194]
[1744602517203,5.73609192,1632.4,1632.0,4.90181]
[1744602517755,5.73609192,1632.4,1632.1,4.90165]
[1744602518054,10.63707192,1632.4,1632.0,4.90181]
[1744602518351,4.90146,1632.2,1631.8,6.12000536]
[1744602518650,4.90146,1632.2,1631.8,8.50679488]
[1744602519254,4.90107,1632.3,1631.8,3.60449488]
[1744602519438,4.90107,1632.3,1632.0,4.90193]
[1744602520683,4.90107,1632.3,1631.9,4.90209]
[1744602520684,0.06117192,1632.2,1631.9,4.90209]
[1744602521381,4.96263192,1632.2,1631.9,4.90209]
[1744602521869,9.86417192,1632.2,1631.8,8.50703488]
[1744602522068,4.96263192,1632.2,1631.8,13.40945488]
[1744602522459,0.06117192,1632.2,1631.9,4.90222]
[1744602522654,4.96224192,1632.3,1631.9,9.80433]
[1744602523254,4.96224192,1632.3,1631.9,9.80421]
[1744602523459,4.96224192,1632.3,1631.9,11.14508049]
[1744602523988,0.06117192,1632.3,1632.0,4.90191]
[1744602524295,0.06117192,1632.3,1632.0,9.80373]
[1744602525249,0.06117192,1632.3,1632.0,4.90182]
[1744602525449,0.06117192,1632.3,1631.9,6.24309049]
[1744602525450,4.96225192,1632.3,1631.9,9.80434]
[1744602525665,9.86348192,1632.3,1631.9,4.90212]
[1744602526189,10.63679192,1632.4,1632.0,4.90195]
[1744602526378,10.63687192,1632.4,1632.0,4.90182]
[1744602526572,4.90119,1632.3,1631.9,6.24313349]
[1744602526759,9.80244,1632.3,1631.9,6.24313349]
[1744602526961,0.7609,1632.1,1631.9,6.24313349]
[1744602528688,4.96253192,1632.2,1631.9,6.24313349]
[1744602528861,5.72343192,1632.2,1631.9,6.24313349]
[1744602530304,0.7949,1631.9,1631.6,4.90303]
[1744602530593,5.75846192,1631.9,1631.5,9.80682]
[1744602530890,10.66101192,1631.9,1631.5,4.90341]
[1744602531486,0.7949,1631.8,1631.4,4.90374]
[1744602531691,5.69768,1631.8,1631.5,4.90343]
[1744602531992,5.75885192,1631.8,1631.5,4.90343]
[1744602534491,5.75885192,1631.8,1631.4,5.57683945]
[1744602534694,0.06117192,1631.7,1631.3,1.37360899]
[1744602534851,0.06117192,1631.7,1631.2,4.9042]
[1744602534852,5.69834,1631.6,1631.2,4.9042]
[1744602535045,5.69866,1631.4,1631.0,4.90487]
[1744602535403,0.7949,1631.4,1631.1,4.9046]
[1744602535585,0.7949,1631.4,1631.1,9.80909]
[1744602535892,0.7949,1631.4,1631.1,5.885399]
[1744602537295,0.7949,1631.4,1631.1,10.789929]
[1744602537673,0.7949,1631.4,1631.1,5.885399]
[1744602538291,0.7949,1631.4,1631.1,10.789959]
[1744602538687,0.7949,1631.4,1631.1,5.885399]
[1744602538876,5.69869,1631.4,1631.1,4.90449]
[1744602539882,0.7949,1631.4,1631.1,4.90449]
[1744602541950,11.61761,1631.8,1630.8,11.62053]
[1744602541951,4.9045,1631.2,1630.8,11.62053]
[1744602542155,5.76074192,1631.1,1630.7,4.90582]
[1744602542458,4.90524,1631.0,1630.6,4.90603]
[1744602542772,4.96648192,1630.9,1630.5,5.70154]
[1744602542982,4.96648192,1630.9,1630.4,4.90675]
[1744602542983,5.70058,1630.8,1630.4,4.90675]
[1744602543185,0.06117192,1630.7,1630.4,4.90675]
[1744602543500,5.70058,1630.8,1630.4,11.174298]
[1744602543701,0.06117192,1630.7,1630.4,6.267488]
[1744602543999,4.90677,1630.4,1630.1,4.90767]
[1744602544210,4.96794192,1630.4,1630.0,4.90785]
[1744602544382,0.06117192,1630.4,1630.1,4.90765]
[1744602544573,0.85607192,1630.5,1630.2,9.81443]
[1744602544892,11.61319,1630.6,1630.4,4.90663]
[1744602544893,6.76817192,1630.6,1630.4,4.90663]
[1744602545058,6.707,1630.6,1630.4,4.90663]
[1744602545260,0.85607192,1630.7,1630.5,4.9063]
[1744602545261,0.7949,1630.7,1630.5,4.9063]
[1744602545505,0.7949,1630.7,1630.3,4.90681]
[1744602545709,0.06117192,1630.6,1630.3,4.90681]
[1744602546185,0.7949,1630.7,1630.5,4.90647]
[1744602546367,0.06117192,1630.6,1630.4,4.90661]
[1744602546764,0.06117192,1630.6,1630.3,6.30754429]
[1744602547074,5.70151,1630.5,1630.1,4.90758]
[1744602547379,0.06117192,1630.4,1630.1,5.04491345]
[1744602547559,0.7949,1630.5,1630.1,6.61261978]
[1744602547760,0.7949,1630.5,1630.2,4.90724]
[1744602548059,0.7949,1630.5,1630.3,0.13734711]
[1744602548273,4.96794192,1630.4,1630.3,0.13734711]
[1744602548471,4.96794192,1630.4,1629.8,5.70352]
[1744602548472,5.76284192,1630.4,1630.0,4.90794]
[1744602548693,0.49679419,1630.3,1630.1,0.13872691]
[1744602548961,5.40389419,1630.3,1630.1,0.13872691]
[1744602549201,0.06117192,1630.2,1629.9,4.90824]
[1744602551398,0.06117192,1630.2,1629.9,9.81634]
[1744602551638,0.06117192,1630.2,1629.9,4.9081]
[1744602552105,0.06117192,1630.2,1629.8,4.90853]
[1744602552106,0.7949,1630.1,1629.8,4.90853]
[1744602554903,0.7949,1630.1,1629.8,4.90839]
[1744602555269,0.7949,1630.1,1629.9,4.90826]
[1744602556918,0.06117192,1630.0,1629.8,4.90839]
[1744602557408,0.06117192,1630.0,1629.6,6.709]
[1744602557573,0.7949,1629.8,1629.6,4.90912]
[1744602557998,1.34140661,1630.2,1629.9,4.90814]
[1744602558235,1.40257853,1630.2,1630.0,4.90781]
[1744602558391,0.85607192,1630.2,1629.8,4.90847]
[1744602558591,10.67118192,1630.2,1629.8,4.90847]
[1744602559225,5.76355192,1630.2,1629.8,4.90847]
[1744602560225,10.67112192,1630.2,1629.8,4.90847]
[1744602560422,5.76355192,1630.2,1629.8,4.90847]
[1744602560725,6.83061811,1630.2,1629.9,4.90827]
[1744602560900,7.5172,1630.4,1630.0,0.85194715]
[1744602561100,0.8052,1630.4,1630.2,9.81445]
[1744602561315,6.17,1630.8,1630.5,4.90647]
[1744602561316,5.71091,1630.8,1630.5,4.90647]
[1744602561519,11.91704152,1630.8,1630.5,4.90647]
[1744602561811,11.91704152,1630.8,1630.4,4.90677]
[1744602562017,4.90605,1630.7,1630.3,4.90706]
[1744602562317,0.06117192,1630.6,1630.3,4.90706]
[1744602562627,4.96722192,1630.7,1630.3,9.81398]
[1744602562814,6.64951707,1630.7,1630.3,9.81398]
[1744602563634,6.64951707,1630.7,1630.4,4.90675]
[1744602563799,1.74346707,1630.7,1630.4,9.81338]
[1744602563993,0.06117192,1630.7,1630.5,4.90646]
[1744602564196,6.9501596,1630.8,1630.7,4.90586]
[1744602564197,0.8052,1630.8,1630.7,4.90586]
[1744602564415,7.5182,1631.0,1630.7,9.81162]
[1744602564614,7.57937192,1631.0,1630.7,4.90576]
[1744602565112,4.90576,1630.8,1630.4,9.81334]
[1744602565308,0.8052,1630.6,1630.3,4.907]
[1744602565501,0.8052,1630.6,1630.3,4.90689]
[1744602566832,0.8052,1630.6,1630.4,4.90674]
[1744602567242,0.8052,1630.6,1630.3,4.90689]
[1744602567536,0.8052,1630.6,1630.3,9.81384]
[1744602570041,0.8052,1630.6,1630.3,4.90689]
[1744602570203,5.71137,1630.6,1630.3,4.90689]
[1744602570398,0.8052,1630.6,1630.3,9.8138]
[1744602572539,0.8052,1630.6,1630.3,4.90689]
[1744602572727,0.8052,1630.6,1630.2,7.5026]
[1744602572728,4.96790192,1630.5,1630.1,4.90737]
[1744602573037,9.87454192,1630.5,1630.1,4.90737]
[1744602573627,0.8052,1630.2,1629.8,4.90851]
[1744602573825,5.71277,1630.2,1629.8,4.90851]
[1744602574147,4.96894192,1630.1,1629.7,6.16248903]
[1744602574310,4.96894192,1630.1,1629.7,11.07133903]
[1744602574510,4.96894192,1630.1,1629.7,4.90885]
[1744602574828,9.87679192,1630.1,1629.7,4.90885]
[1744602575941,4.96894192,1630.1,1629.7,9.8176]
[1744602576147,0.06117192,1630.1,1629.8,4.90838]
[1744602576303,1.36587581,1630.1,1629.8,4.90838]
[1744602576507,7.5072,1630.2,1630.0,4.90797]
[1744602579738,7.5072,1630.2,1629.9,4.90811]
[1744602580109,7.5072,1630.2,1629.8,0.86094844]
[1744602580110,4.96897192,1630.1,1629.7,4.97021835]
[1744602580408,0.7883,1630.0,1629.7,9.81757]
[1744602580609,0.7883,1630.0,1629.8,4.90839]
[1744602580813,0.7883,1630.0,1629.9,4.90827]
[1744602581238,6.702,1630.2,1629.9,6.689416]
[1744602581537,6.702,1630.2,1629.9,5.70775]
[1744602581742,5.75663192,1630.3,1629.9,5.70775]
[1744602582139,5.75663192,1630.3,1630.0,4.90787]
[1744602582358,5.75663192,1630.3,1629.7,8.03889986]
[1744602582359,4.90973,1629.5,1628.9,0.7996]
[1744602582565,0.06117192,1629.4,1629.2,4.91023]
[1744602582747,0.84947192,1629.6,1629.2,4.97156232]
[1744602583059,7.55247192,1629.8,1629.5,4.9092]
[1744602583262,1.12566319,1630.2,1629.6,4.90915]
[1744602583263,5.6963,1630.0,1629.6,4.90915]
[1744602583555,4.96958192,1629.9,1629.5,5.7088]
[1744602584059,5.75747192,1630.0,1629.6,4.90907]
[1744602584212,10.66565192,1630.0,1629.6,4.90907]
[1744602584414,5.75747192,1630.0,1629.6,4.90907]
[1744602584841,0.7883,1630.0,1629.8,4.90851]
[1744602585946,0.7883,1630.0,1629.7,4.90884]
[1744602586146,5.6964,1630.0,1629.6,5.970927]
[1744602586543,5.6964,1630.0,1629.6,6.03212252]
[1744602586727,0.7883,1630.0,1629.7,4.90887]
[1744602587446,0.7883,1630.0,1629.7,6.00296925]
[1744602588452,4.90845,1629.9,1629.4,6.16]
[1744602588617,4.90882,1629.8,1629.4,6.16]
[1744602588818,0.7503,1629.6,1629.2,4.91037]
[1744602589053,5.65969,1629.6,1629.2,4.91037]
[1744602589234,5.65969,1629.6,1629.3,0.13860015]
[1744602589438,5.72086192,1629.6,1629.3,0.13860015]
[1744602590667,5.72086192,1629.6,1629.1,5.74988]
[1744602590668,4.90991,1629.4,1629.1,0.02]
[1744602590869,4.97088192,1629.5,1629.1,0.02]
[1744602590870,5.66068,1629.2,1629.1,0.02]
[1744602593758,9.21068,1629.2,1629.1,0.02]
[1744602594149,0.7503,1628.6,1628.3,4.91308]
[1744602594756,0.06117192,1628.5,1628.2,6.705]
[1744602594929,0.7503,1628.6,1628.3,4.91296]
[1744602595123,0.81147192,1628.6,1628.2,6.568599]
[1744602595328,5.72382192,1628.6,1628.2,4.91338]
[1744602595546,4.91295,1628.4,1628.1,0.02]
[1744602595853,0.7503,1628.2,1628.1,0.02]
[1744602596057,5.6637,1628.2,1628.1,0.02]
[1744602596257,1.81410519,1628.2,1628.1,0.02]
[1744602596554,0.81147192,1628.4,1628.1,4.93367]
[1744602596858,5.72429192,1628.4,1628.1,0.02]
[1744602598034,0.81147192,1628.4,1628.2,4.91327]
[1744602598239,6.76717192,1628.5,1628.2,4.91327]
[1744602598628,6.76717192,1628.5,1628.2,4.91325]
[1744602598857,6.76717192,1628.5,1628.3,4.91309]
[1744602599057,0.81147192,1628.6,1628.4,4.91279]
[1744602599262,0.06117192,1628.7,1628.4,4.91276]
[1744602599836,0.06117192,1628.7,1628.4,4.91268]
[1744602600426,4.97310192,1628.7,1628.3,5.73229]
[1744602600628,4.97310192,1628.7,1628.2,4.91336]
[1744602600629,4.91235,1628.6,1628.2,4.91336]
[1744602600868,0.06117192,1628.7,1628.1,5.75288]
[1744602601074,0.06117192,1628.7,1628.4,4.91253]
[1744602601282,0.06117192,1628.8,1628.3,4.91309]
[1744602601440,5.66142,1629.0,1628.4,1.310509]
[1744602601441,4.91155,1628.9,1628.4,1.310509]
[1744602601657,4.91203,1628.7,1628.3,4.91308]
[1744602601846,0.06117192,1628.6,1628.3,4.91308]
[1744602602287,0.7503,1628.5,1628.2,6.16]
[1744602602440,9.88717192,1628.4,1628.1,0.02]
[1744602602749,4.97412192,1628.4,1628.1,0.02]
[1744602602939,6.03781411,1628.4,1628.1,0.02]
[1744602603549,4.91324,1628.3,1628.1,0.02]
[1744602604205,0.06117192,1628.2,1628.1,0.02]
[1744602604487,0.06117192,1628.3,1628.1,0.02]
[1744602605352,4.97431192,1628.3,1628.1,0.02]
[1744602605552,0.49743119,1628.2,1628.1,0.02]
[1744602606540,0.06117192,1628.4,1628.1,4.93353]
[1744602606745,0.06117192,1628.4,1628.2,4.91321]
[1744602608292,0.06117192,1628.4,1628.1,4.93362]
[1744602608594,4.91314,1628.3,1628.1,0.02]
[1744602608802,5.75407192,1628.2,1628.1,0.02]
[1744602608998,6.82079311,1628.2,1628.1,0.02]
[1744602610288,1.90739311,1628.2,1628.1,0.02]
[1744602610496,6.82079311,1628.2,1628.1,0.02]
[1744602610858,1.90739311,1628.2,1628.1,0.02]
[1744602611057,3.0,1628.4,1628.1,0.02]
[1744602611058,0.06117192,1628.3,1628.1,0.02]
[1744602611556,0.84067192,1628.5,1628.3,4.91309]
[1744602612683,0.84067192,1628.5,1628.3,9.82601]
[1744602612890,6.76217192,1628.6,1628.3,9.82601]
[1744602613059,6.76217192,1628.6,1628.4,4.91278]
[1744602613557,6.701,1628.6,1628.4,9.82541]
[1744602614158,6.701,1628.6,1628.4,4.91263]
[1744602615086,0.06117192,1628.5,1628.2,4.91325]
[1744602615394,0.06117192,1628.5,1628.3,4.91293]
[1744602616110,0.06117192,1628.5,1628.2,4.91325]
[1744602616397,0.06117192,1628.5,1628.2,9.8266]
[1744602616904,0.06117192,1628.5,1628.3,4.91297]
[1744602617063,0.06117192,1628.6,1628.4,4.91258]
[1744602617264,0.84067192,1628.7,1628.5,4.91249]
[1744602617587,0.84067192,1628.7,1628.4,4.91258]
[1744602617889,5.75277192,1628.7,1628.3,10.61441]
[1744602618205,2.57731011,1628.7,1628.2,4.91335]
[1744602618402,5.75265192,1628.7,1628.3,4.91297]
[1744602619104,10.66472192,1628.7,1628.3,4.91297]
[1744602619408,4.9122,1628.6,1628.3,4.91297]
[1744602619561,0.06117192,1628.5,1628.2,4.91335]
[1744602619902,4.97373192,1628.5,1628.1,5.72209]
[1744602620106,10.87499511,1628.5,1628.1,5.72209]
[1744602620610,0.8146,1628.4,1628.1,4.93369]
[1744602620767,0.06117192,1628.3,1628.1,0.02]
[1744602620961,0.06117192,1628.3,1628.1,4.93358]
[1744602621600,0.06117192,1628.3,1628.2,4.9134]
[1744602621782,0.87577192,1628.4,1628.2,4.9134]
[1744602621984,1.55346543,1628.4,1628.2,4.9134]
[1744602622162,0.87577192,1628.4,1628.2,4.9134]
[1744602622506,0.87577192,1628.4,1628.2,4.91328]
[1744602622702,0.8146,1628.4,1628.2,4.91328]
[1744602622875,0.06117192,1628.5,1628.2,9.82655]
[1744602623413,0.06117192,1628.5,1628.3,4.91296]
[1744602624614,0.06117192,1628.5,1628.2,10.60337]
[1744602624768,0.06117192,1628.5,1628.3,4.91309]
[1744602625678,0.06117192,1628.5,1628.2,5.69007]
[1744602626015,0.06117192,1628.5,1628.2,10.60331]
[1744602626373,0.06117192,1628.5,1628.3,4.91307]
[1744602626773,4.91198,1628.7,1628.5,4.91249]
[1744602626774,0.06117192,1628.7,1628.5,4.91249]
[1744602627281,4.97320192,1628.7,1628.3,4.91309]
[1744602627509,9.88527192,1628.7,1628.3,4.91309]
[1744602627709,0.98852719,1628.6,1628.3,9.82606]
[1744602627898,4.97320192,1628.7,1628.4,4.91275]
[1744602628268,0.06117192,1628.7,1628.4,4.91275]
[1744602628710,0.06117192,1628.7,1628.5,4.91241]
[1744602629495,0.06117192,1628.7,1628.5,4.91233]
[1744602630117,5.7143,1628.6,1628.2,4.9132]
[1744602630283,5.71505,1628.4,1628.1,0.02]
[1744602630479,0.06117192,1628.3,1628.1,0.02]
[1744602632614,4.97445192,1628.3,1628.1,0.02]
[1744602632930,0.06117192,1628.3,1628.1,0.02]
[1744602633275,0.06117192,1628.3,1628.1,4.93369]
[1744602633502,7.56517192,1628.4,1628.2,4.91328]
[1744602633703,8.37883211,1628.4,1628.2,4.91328]
[1744602634675,8.37883211,1628.4,1628.2,4.91324]
[1744602634984,6.695,1628.7,1628.5,4.91249]
[1744602635309,6.77175979,1628.7,1628.5,4.91249]
[1744602635605,6.77175979,1628.7,1628.4,4.91279]
[1744602637275,6.77175979,1628.7,1628.4,9.82547]
[1744602637506,8.01888877,1628.7,1628.4,9.82547]
[1744602638308,8.01888877,1628.7,1628.5,4.91249]
[1744602638604,6.695,1628.7,1628.5,4.91233]
[1744602639014,6.695,1628.7,1628.5,9.82467]
[1744602639213,6.695,1628.7,1628.5,4.91233]
[1744602639596,6.695,1628.7,1628.6,4.91219]
[1744602640215,6.695,1628.7,1628.5,4.91233]
[1744602641827,6.695,1628.7,1628.5,9.82468]
[1744602645238,6.695,1628.7,1628.5,4.91233]
[1744602645627,7.45096581,1628.7,1628.5,4.91233]
[1744602645828,6.695,1628.7,1628.5,9.82467]
[1744602648239,6.695,1628.7,1628.5,4.91233]
[1744602649243,6.695,1628.7,1628.4,4.91274]
[1744602649451,4.9129,1628.4,1628.0,9.82787]
[1744602649670,4.9129,1628.4,1628.1,4.91367]
[1744602649866,4.98967078,1628.4,1628.1,4.91367]
[1744602650544,5.97988686,1628.4,1628.1,4.91367]
[1744602650717,5.97988686,1628.4,1628.0,9.82774]
[1744602650916,5.97988686,1628.4,1628.1,4.91362]
[1744602651154,5.97988686,1628.4,1628.1,5.19451843]
[1744602651658,5.68283,1628.3,1628.1,0.28089843]
[1744602651855,0.07677573,1628.2,1627.9,5.69607]
[1744602652062,0.07677573,1628.2,1628.0,0.28143574]
[1744602652463,4.99018573,1628.2,1628.0,0.28143574]
[1744602653058,0.07677573,1628.2,1628.0,0.28143574]
[1744602654136,0.07677573,1628.2,1628.0,5.19533574]
[1744602654459,0.84648157,1628.6,1628.1,3.14603067]
[1744602654662,5.68129,1628.8,1628.4,4.91259]
[1744602654866,0.07675648,1628.7,1628.5,0.27995418]
[1744602655063,0.65256113,1628.7,1628.5,0.27995418]
[1744602655271,0.0767549,1628.8,1628.6,4.91219]
[1744602655432,0.0767549,1628.8,1628.7,0.27825985]
[1744602655626,0.07675035,1628.9,1628.6,4.91208]
[1744602655828,0.07675035,1628.9,1628.7,4.91189]
[1744602656075,0.07675035,1628.9,1628.8,0.27472526]
[1744602656238,0.07675035,1628.9,1628.7,4.91189]
[1744602657355,0.07675035,1628.9,1628.8,4.91159]
[1744602657555,4.08819597,1629.1,1629.0,4.91098]
[1744602658332,4.08819597,1629.1,1629.0,0.27331896]
[1744602658551,8.99887597,1629.1,1629.0,0.27331896]
[1744602658752,4.85789597,1629.1,1629.0,0.27331896]
[1744602659068,5.83472557,1629.1,1629.0,0.27331896]
[1744602659253,5.83472557,1629.1,1628.8,4.9113]
[1744602659477,0.07674055,1629.0,1628.8,4.9113]
[1744602659670,5.91146612,1629.1,1628.8,4.9113]
[1744602660186,5.91146612,1629.1,1628.9,4.91127]
[1744602660385,1.82327015,1629.1,1628.9,4.91127]
[1744602661270,4.9111,1629.0,1628.6,4.91217]
[1744602661583,0.56785571,1628.9,1628.6,4.91217]
[1744602661984,5.68151,1628.8,1628.4,4.91269]
[1744602662145,5.68151,1628.8,1628.3,4.91296]
[1744602662146,4.98879896,1628.7,1628.3,4.91296]
[1744602662341,9.90089896,1628.7,1628.3,4.91296]
[1744602663277,4.98879896,1628.7,1628.3,9.82587]
[1744602663660,0.07675896,1628.7,1628.4,4.91279]
[1744602663868,0.65256686,1628.7,1628.4,4.91279]
[1744602664675,0.65256686,1628.7,1628.4,9.82543]
[1744602665088,0.65256686,1628.7,1628.3,4.91306]
[1744602665307,5.56447686,1628.7,1628.3,4.91306]
[1744602665610,5.56447686,1628.7,1628.3,9.826]
[1744602665796,0.55644769,1628.6,1628.3,9.826]
[1744602665969,0.55644769,1628.6,1628.4,4.91276]
[1744602666174,0.65256686,1628.7,1628.4,4.91269]
[1744602666374,0.84646279,1628.8,1628.6,9.82421]
[1744602666673,0.87315174,1629.0,1628.7,4.91168]
[1744602666877,0.87315174,1629.0,1628.8,4.91148]
[1744602669115,0.87315174,1629.0,1628.7,4.91168]
[1744602669316,0.87315174,1629.0,1628.5,4.91249]
[1744602669620,4.91148,1628.9,1628.5,4.91249]
[1744602669822,0.56789936,1628.8,1628.5,4.91249]
[1744602669991,5.7083,1628.7,1628.4,4.91275]
[1744602670189,0.07675697,1628.6,1628.3,9.82605]
[1744602671014,0.07675697,1628.6,1628.1,4.91368]
[1744602671015,4.91269,1628.5,1628.1,4.91368]
[1744602671213,0.07676726,1628.6,1628.1,4.9137]
[1744602671423,6.76276384,1628.7,1628.4,5.73888]
[1744602671603,6.76276384,1628.7,1628.5,4.91229]
[1744602671811,0.7964,1628.9,1628.6,4.91203]
[1744602671995,0.8731486,1628.9,1628.7,4.91179]
[1744602672784,0.8731486,1628.9,1628.6,9.82411]
[1744602672982,2.12018046,1628.9,1628.6,9.82411]
[1744602673209,2.12018046,1628.9,1628.7,4.91185]
[1744602673420,2.12018046,1628.9,1628.7,4.91178]
[1744602674613,6.686,1629.0,1628.7,4.91174]
[1744602674614,6.76274849,1629.0,1628.7,4.91174]
[1744602674923,11.67392849,1629.0,1628.6,4.91216]
[1744602675626,9.82293,1628.9,1628.5,4.91247]
[1744602675788,0.07675026,1628.8,1628.5,4.91247]
[1744602675983,0.07675026,1628.8,1628.4,0.8263]
[1744602675984,0.7964,1628.7,1628.4,5.73904]
[1744602676190,6.28691003,1628.7,1628.3,4.91304]
[1744602676390,4.98907656,1628.6,1628.2,4.91337]
[1744602676815,9.90145656,1628.6,1628.2,4.91337]
[1744602677217,4.98907656,1628.6,1628.2,4.91337]
[1744602678031,4.98907656,1628.6,1628.2,9.8266]
[1744602678336,0.49890766,1628.5,1628.2,9.8266]
[1744602678547,0.07676724,1628.4,1628.0,12.42619]
[1744602678829,0.07676724,1628.4,1628.0,4.91389]
[1744602678830,10.69914724,1628.4,1628.0,4.91389]
[1744602679649,5.78613724,1628.4,1628.0,4.91389]
[1744602679813,5.78613724,1628.4,1628.0,9.82777]
[1744602680021,0.07677336,1628.5,1628.3,4.91309]
[1744602680223,5.7481107,1628.5,1628.1,4.91353]
[1744602680537,4.91282,1628.4,1628.0,10.60701]
[1744602680709,0.07677338,1628.3,1628.0,10.60701]
[1744602681239,0.07677338,1628.3,1628.1,4.91367]
[1744602681414,10.58376734,1628.5,1628.1,4.91367]
[1744602681415,0.07677334,1628.4,1628.1,4.91367]
[1744602682842,0.07677334,1628.4,1628.1,9.82722]
[1744602683247,0.07677334,1628.4,1628.3,4.91309]
[1744602683413,5.49052003,1628.7,1628.3,4.91309]
[1744602683414,4.98905917,1628.6,1628.3,4.91309]
[1744602683612,4.98905917,1628.6,1628.2,4.91327]
[1744602683815,4.98905917,1628.6,1628.2,9.82653]
[1744602684110,9.90147917,1628.6,1628.2,4.91326]
[1744602684324,5.90267792,1628.5,1628.2,4.91326]
[1744602684524,0.07676632,1628.4,1628.2,4.91326]
[1744602685151,5.90267792,1628.5,1628.2,4.91326]
[1744602685152,5.97944424,1628.5,1628.2,4.91326]
[1744602685307,0.0767662,1628.6,1628.3,4.91284]
[1744602685668,0.0767662,1628.6,1628.3,9.82578]
[1744602685834,0.0767662,1628.6,1628.4,4.91279]
[1744602686035,0.0767662,1628.6,1628.3,4.91284]
[1744602686413,0.0767596,1628.7,1628.4,4.91258]
[1744602686723,4.91232,1628.6,1628.2,4.91328]
[1744602686938,4.91232,1628.6,1628.3,4.91304]
[1744602687119,4.9886996,1628.7,1628.3,9.82599]
[1744602687459,4.91226,1628.6,1628.3,4.91295]
[1744602687759,0.07675872,1628.5,1628.3,4.91295]
[1744602688665,4.98902431,1628.6,1628.3,4.91295]
[1744602689358,0.07676431,1628.6,1628.3,4.91295]
[1744602689589,0.07676431,1628.6,1628.2,5.896086]
[1744602689882,3.0,1628.8,1628.0,3.14565572]
[1744602689883,4.91261,1628.5,1628.1,4.91369]
[1744602690186,4.98961803,1628.4,1628.1,4.91369]
[1744602690589,0.07676803,1628.4,1628.1,9.82724]
[1744602690785,0.07676802,1628.5,1628.2,9.8265]
[1744602691557,4.98868653,1628.7,1628.4,4.91279]
[1744602692263,9.90074653,1628.7,1628.3,4.91288]
[1744602692478,4.91227,1628.6,1628.3,4.91288]
[1744602692665,4.91227,1628.6,1628.2,10.81244467]
[1744602693289,4.9132,1628.3,1627.9,4.91407]
[1744602693487,4.9132,1628.3,1627.9,4.94502759]